Cogmind - Beta 14 @@@ ROGUE MODE // 2025.03.27 @ 14:07:58 Player: Zeta Lockhart Result: Destroyed by CR-A16 with Phasing Sabre Performance ------------- Evolutions (3) 1500 Regions Visited (10) 2000 Robots Destroyed (107) 535 Value Destroyed (2460) 2460 Prototype IDs (31) 620 Alien Tech Used (0) 0 Bonus (763) 763 TOTAL SCORE: 7878 Bonus ------- High Alert Combat Kills 163 Aligned with FarCom 300 Met Imprinter 300 Cogmind --------- Core Integrity 0/700 Matter 120/300 Energy 66/100 System Corruption 1% Temperature Cool (0) Movement Flying (115) Ox1 Location -7/Zion Parts ------- > --- POWER (1) -------- (None) > --- PROPULSION (5) --- VTOL Module > --- UTILITY (4) ------ Transmission Jammer Makeshift System Shield > --- WEAPON (3) ------- Makeshift Shrapnel Gun Makeshift Hammer > --- INVENTORY (5) ---- Makeshift Sensor Array Makeshift Hacking Suite Relay Coupler [Programmer] (83) Makeshift Sword Peak State ------------ > --- POWER ------------ Light Nuclear Core > --- PROPULSION ------- Improved Flight Unit Cesium-ion Thruster Improved VTOL Module Improved VTOL Module Improved VTOL Module > --- UTILITY ---------- Advanced Heat Sink Improved Targeting Computer Improved Medium Armor Plating Hacking Drone Bay > --- WEAPON ----------- Lightning Gun Minigun Gauss Rifle > --- INVENTORY -------- Light Nuclear Core VTOL Module VTOL Module Xenon Bombardment Thruster Minigun [Rating: 53] Favorites ----------- Power Ion Engine Engine Ion Engine Power Core Light Nuclear Core Propulsion Aluminum Leg Treads Armored Treads Leg Aluminum Leg Wheel Compact Wheel Hover Unit Hover Unit Flight Unit Improved VTOL Module Utility Tractor Beam Device Tractor Beam Storage Small Storage Unit Processor Improved Targeting Computer Hackware System Shield Protection Improved Medium Armor Plating Weapon Improved Assault Rifle Energy Gun Lightning Gun Energy Cannon Beam Cannon Ballistic Gun Improved Assault Rifle Ballistic Cannon Improved Light Cannon Special Weapon RU-N14's Throwing Claymores Impact Weapon Makeshift Hammer Slashing Weapon Makeshift Sword Build | -11 -10 -9 -9 -9 -8 -8 -7 -7 -7 -7 ------- Run | Yrd Mat Mat Min Exi Min Mat Fac Low Low Zio Slots Evolved 6 | . . 2 . . . 2 2 . . . Power . | . . . . . . . . . . . Propulsion 3 | . . 1 . . . 1 1 . . . Utility 2 | . . 1 . . . . 1 . . . Weapon 1 | . . . . . . 1 . . . . Parts Attached 79 | 7 5 13 3 1 2 24 2 . 2 20 Power 9 | 1 . 1 . . . 6 . . . 1 Engine 4 | 1 . 1 . . . 2 . . . . Core 5 | . . . . . . 4 . . . 1 Reactor . | . . . . . . . . . . . Propulsion 24 | 2 2 2 3 1 . 6 1 . . 7 Treads 3 | . . . . . . . . . . 3 Leg 5 | . . . 2 1 . 1 . . . 1 Wheel 3 | 2 . . 1 . . . . . . . Hover 4 | . 2 2 . . . . . . . . Flight 9 | . . . . . . 5 1 . . 3 Utility 19 | 2 1 3 . . 2 6 1 . . 4 Device 10 | 1 1 2 . . . 3 . . . 3 Storage 3 | 1 . . . . 2 . . . . . Processor 3 | . . . . . . 3 . . . . Hackware 2 | . . 1 . . . . . . . 1 Protection 1 | . . . . . . . 1 . . . Artifact . | . . . . . . . . . . . Weapon 27 | 2 2 7 . . . 6 . . 2 8 Energy Gun 4 | 1 . 2 . . . . . . 1 . Energy Cannon 2 | . 1 1 . . . . . . . . Ballistic Gun 14 | 1 1 4 . . . 5 . . 1 2 Ballistic Cannon 1 | . . . . . . 1 . . . . Launcher . | . . . . . . . . . . . Special Weapon 4 | . . . . . . . . . . 4 Impact Weapon 1 | . . . . . . . . . . 1 Slashing Weapon 1 | . . . . . . . . . . 1 Piercing Weapon . | . . . . . . . . . . . Special Melee Weapon . | . . . . . . . . . . . Unidentified Prototypes 8 | . . 2 . . . 3 . . . 3 Parts Lost 29 | . . 5 1 . . 7 . . 1 15 Power 4 | . . 1 . . . 1 . . . 2 Propulsion 11 | . . 2 1 . . 2 . . . 6 Utility 7 | . . 1 . . . 3 . . . 3 Weapon 7 | . . 1 . . . 1 . . 1 4 Highest Loss Streak 12 | . . 2 1 . . 6 . . 1 12 To Critical Strikes . | . . . . . . . . . . . Average Slot Usage (%) 92 | . 100 88 98 100 100 96 89 100 100 54 Engine 7 | . 14 10 11 11 11 4 . . . . Core 2 | . . . . . . 4 7 7 7 4 Leg 13 | . . . 20 27 33 16 . . . . Wheel 3 | . 23 . 9 5 . . . . . . Hover 3 | . 4 22 1 . . . . . . . Flight 10 | . . . . . . 16 32 38 38 19 Device 10 | . 14 13 11 11 11 11 7 7 7 5 Storage 7 | . 14 11 11 11 11 4 . . . . Processor 3 | . . . . . . 5 15 15 15 3 Hackware 5 | . . 8 11 11 11 4 . . . . Energy Cannon 1 | . 3 5 . . . . . . . . Ballistic Gun 19 | . 20 15 22 22 22 23 23 23 19 6 Peak Build Rating 53 | 7 7 16 16 25 26 38 45 45 46 53 Average Rating 25 | 4 6 11 15 20 25 34 40 45 45 29 On Entrance 24 | . 7 7 15 16 25 26 38 45 45 46 Naked Turns . | . . . . . . . . . . . Heaviest Build 52 | 11 13 17 17 17 52 40 23 23 24 25 Greatest Support 68 | 32 32 18 20 50 50 60 25 25 25 68 Greatest Overweight (x) 7 | . . 2 2 . 1 . . . . 7 Average Overweight (x) . | . . . . . . . . . . . Largest Inventory Capacity 20 | 8 8 8 8 8 20 15 5 5 5 5 Average Capacity 8 | 5 8 8 8 8 14 10 5 5 5 5 Most Carried 15 | 5 7 8 8 8 11 15 5 5 5 5 Average Carried 7 | 2 4 7 8 8 10 9 4 4 4 4 Final Capacity 15 | 8 8 8 8 8 15 5 5 5 5 5 Final Carried 11 | 2 4 8 8 8 11 5 4 5 5 4 Class Distribution -------------------- 45% | Mutant 25% | Sprinter 13% | Scavenger-Mutant 8% | Scavenger-Skirmisher 5% | Skirmisher Dominant Class ---------------- Mutant | -10/Materials Mutant | -9/Materials Scavenger-Mutant | -9/Mines Mutant | -9/Exiles Mutant | -8/Mines Sprinter | -8/Materials Sprinter | -7/Factory Sprinter | -7/Lower Caves Sprinter | -7/Lower Caves Mutant | -7/Zion Resources | -11 -10 -9 -9 -9 -8 -8 -7 -7 -7 -7 ----------- Run | Yrd Mat Mat Min Exi Min Mat Fac Low Low Zio Matter Collected 1987 | 275 69 210 78 . 54 973 . 147 126 55 Remotely 1031 | 69 69 60 78 . 54 701 . . . . Salvage Created 3444 | 76 134 524 215 . 47 1811 . 219 156 262 Parts 222 | 1 9 28 15 . 5 113 . 15 6 30 Haulers Intercepted 8 | . 1 1 . . . 6 . . . . Recyclers Shooed 3 | . . . 2 . . 1 . . . . Parts Field Recycled . | . . . . . . . . . . . Retrieved Matter . | . . . . . . . . . . . Parts Self-Destructed 15 | . . . . . . . . 13 2 . Prevented 2 | . . . . . . . . . 2 . Kills | -11 -10 -9 -9 -9 -8 -8 -7 -7 -7 -7 ------- Run | Yrd Mat Mat Min Exi Min Mat Fac Low Low Zio Combat Hostiles Destroyed 58 | . 1 8 2 . 3 28 . 9 2 5 Guns 42 | . 1 4 2 . 3 20 . 9 2 1 Cannons 13 | . . 4 . . . 8 . . . 1 AOE 3 | . . . . . . . . . . 3 Classes Destroyed 14 | 1 4 3 1 . . 1 . . 1 3 Worker 2 | . . 1 . . . 1 . . . . Builder 2 | . . . . . . 2 . . . . Hauler 8 | . 1 1 . . . 6 . . . . Recycler 8 | 1 . 2 2 . . 3 . . . . Operator 2 | . 1 . . . . 1 . . . . Watcher 10 | . 1 4 . . . 5 . . . . Swarmer 24 | . . 3 . . 3 9 . 9 . . Grunt 21 | . 1 4 1 . . 15 . . . . Brawler 1 | . . . 1 . . . . . . . Sentry 6 | . . 1 . . . 4 . . 1 . Programmer 1 | . . . . . . . . . 1 . Zionite 17 | . . . . . . . . . . 17 Tinkerer 2 | . . . . . . . . . . 2 Mutant 4 | . . . . . . . . . . 4 Best Kill Streak 13 | 1 3 4 2 . 3 13 . 4 1 5 Combat Bots Only 7 | . 1 3 2 . 3 7 . 4 1 4 Max Kills in Single Turn 2 | 1 1 2 1 . 2 2 . 1 1 2 Gunslinging 1 | . . . . . 1 . . . . . Exploded 1 | . . . . . . . . . . 1 Melee . | . . . . . . . . . . . Uniques/NPCs Destroyed 1 | . . . . . . . . . . 1 Imprinter (-7/Zion) Combat | -11 -10 -9 -9 -9 -8 -8 -7 -7 -7 -7 -------- Run | Yrd Mat Mat Min Exi Min Mat Fac Low Low Zio Hostile Shots Fired 296 | . 1 49 2 . 17 125 . 35 17 50 Missed 103 | . . 17 1 . 5 36 . 15 9 20 Damage Taken 3866 | . 11 465 11 . 93 1211 . 304 100 1671 Core 966 | . . 126 . . . 111 . 30 6 693 Absorbed by Shields . | . . . . . . . . . . . Core Remaining (%) 86 | 100 100 . . . 68 79 . . . . Volleys Fired 223 | 5 17 50 8 . 4 79 . 16 8 36 Largest 3 | 2 2 2 2 . 2 3 . 3 3 3 Hottest 108 | 60 80 81 46 . 46 85 . 74 108 108 Shots Fired 523 | 10 34 100 16 . 8 236 . 48 24 47 Gun 447 | 10 31 68 16 . 8 210 . 48 24 32 Cannon 61 | . 3 32 . . . 26 . . . . Launcher . | . . . . . . . . . . . Special 15 | . . . . . . . . . . 15 Kinetic 455 | 5 29 64 16 . 8 236 . 48 22 27 Thermal 46 | 5 5 36 . . . . . . . . Explosive 15 | . . . . . . . . . . 15 Electromagnetic 7 | . . . . . . . . . 2 5 Robot Hit Streak 21 | 4 5 10 11 . 7 21 . 21 18 10 Robot Miss Streak 7 | 2 7 3 1 . 3 3 . 2 1 4 Penetration Max 1 | . . . . . . . . 1 . . Secondary Targets 13 | . . 2 1 . 2 3 . 1 . 4 Max Gunslinging Chain 2 | . . 1 1 . 1 1 . 1 . 2 Shots Hit Robots 363 | 7 19 61 13 . 4 166 . 35 17 41 Core Hits 182 | 3 9 26 7 . 3 80 . 15 6 33 Critical Kills 2 | . . . . . . 1 . . . 1 Critical Parts Destroyed 4 | . . . . . . 3 . 1 . . Critical Strikes 12 | . . . . . . 5 . 1 . 6 Destroy 5 | . . . . . . 4 . 1 . . Blast 1 | . . . . . . 1 . . . . Smash 1 | . . . . . . . . . . 1 Sever 5 | . . . . . . . . . . 5 Melee Attacks 3 | . . . . . . . . . . 3 Impact 3 | . . . . . . . . . . 3 Slashing . | . . . . . . . . . . . Piercing . | . . . . . . . . . . . Sneak Attacks . | . . . . . . . . . . . Combat Hostiles . | . . . . . . . . . . . Follow-up Attacks . | . . . . . . . . . . . Damage Inflicted 8090 | 73 158 811 187 . 57 2707 . 598 332 3167 Guns 4522 | 73 158 374 187 . 57 2344 . 598 332 399 Cannons 800 | . . 437 . . . 363 . . . . Explosions 2303 | . . . . . . . . . . 2303 Melee 106 | . . . . . . . . . . 106 Ramming 11 | . . . . . . . . . . 11 Kinetic 4713 | 40 147 334 187 . 57 2707 . 598 296 347 Thermal 521 | 33 11 477 . . . . . . . . Explosive 2303 | . . . . . . . . . . 2303 Electromagnetic 88 | . . . . . . . . . 36 52 Impact 106 | . . . . . . . . . . 106 Slashing 348 | . . . . . . . . . . 348 Piercing . | . . . . . . . . . . . Highest Corruption 1 | . . . . . . . . . 1 1 Average Corruption 1 | . . . . . . . . . 1 1 Corruption Purged . | . . . . . . . . . . . Corruption Blocked . | . . . . . . . . . . . Effects 3 | . . . . . . . . . 1 2 Message Errors 1 | . . . . . . . . . . 1 Heat Flow Errors 1 | . . . . . . . . . 1 . Alerts 1 | . . . . . . . . . . 1 Overload Shots . | . . . . . . . . . . . Overflow Damage 104 | . . . . . . 1 . . . 103 Projectiles 1 | . . . . . . 1 . . . . Explosions 101 | . . . . . . . . . . 101 Melee 2 | . . . . . . . . . . 2 Knockbacks 1 | . . . . . . 1 . . . . Impact . | . . . . . . . . . . . Kinetic 1 | . . . . . . 1 . . . . Secondary . | . . . . . . . . . . . Self-Inflicted Damage 4 | . . . . . . . . . . 4 Shots . | . . . . . . . . . . . Rammed 6 | . . . . . . . . . . 6 Targets Rammed 6 | . . . . . . . . . . 6 Kicked . | . . . . . . . . . . . Crushed . | . . . . . . . . . . . Highest Temperature 226 | 40 40 226 . . . 135 . . 171 36 Average Temperature 62 | 27 23 79 . . . 49 . . 69 12 Received Heat Transfer 815 | . 6 156 6 . . 540 . . 6 101 Siege Activations . | . . . . . . . . . . . Robots Corrupted . | . . . . . . . . . . . Combat Hostiles . | . . . . . . . . . . . Parts Fried 1 | . . . . . . . . . . 1 Impact Corruptions 1 | . . . . . . . . . . 1 Robots Melted . | . . . . . . . . . . . Combat Hostiles . | . . . . . . . . . . . Parts Melted 2 | . . 2 . . . . . . . . Heat Transferred 1099 | 75 25 999 . . . . . . . . Parts Sabotaged . | . . . . . . . . . . . Parts Stolen . | . . . . . . . . . . . Parts Stripped . | . . . . . . . . . . . Power Chain Reactions . | . . . . . . . . . . . Alert | -11 -10 -9 -9 -9 -8 -8 -7 -7 -7 -7 ------- Run | Yrd Mat Mat Min Exi Min Mat Fac Low Low Zio Peak Influence 837 | 5 95 186 66 . 70 837 380 . . . Initial 380 | . 3 39 16 . . . 380 . . . Average 143 | 2 35 70 64 . 51 278 380 . . . Maximum Alert Level 3 | . . . . . . 3 1 . . . Low Security (%) 81 | 100 100 100 100 . 100 54 . . . . Level 1 4 | . . . . . . 7 100 . . . Level 2 12 | . . . . . . 33 . . . . Level 3 1 | . . . . . . 4 . . . . Level 4 . | . . . . . . . . . . . Level 5 . | . . . . . . . . . . . High Security . | . . . . . . . . . . . Max Security . | . . . . . . . . . . . Squads Dispatched 6 | . 1 1 . . . 3 1 . . . Investigation 2 | . . . . . . 1 1 . . . Extermination . | . . . . . . . . . . . Reinforcement 4 | . 1 1 . . . 2 . . . . Assault . | . . . . . . . . . . . Garrison . | . . . . . . . . . . . Intercept . | . . . . . . . . . . . Searches Triggered . | . . . . . . . . . . . Construction Impeded . | . . . . . . . . . . . Haulers Reinforced . | . . . . . . . . . . . Active Scanning Responses . | . . . . . . . . . . . Cargo Convoy Interrupts . | . . . . . . . . . . . Stealth | -11 -10 -9 -9 -9 -8 -8 -7 -7 -7 -7 --------- Run | Yrd Mat Mat Min Exi Min Mat Fac Low Low Zio Distress Signals 6 | . 1 4 . . . 1 . . . . Communications Jammed . | . . . . . . . . . . . Distress Signals . | . . . . . . . . . . . Times Spotted 122 | . 8 16 2 . 3 42 . 10 2 39 Peak Tracking Total 16 | . 3 6 2 . 3 8 . 4 1 16 Tactical Retreats 17 | . . . . . . 9 . 1 . 7 Traps | -11 -10 -9 -9 -9 -8 -8 -7 -7 -7 -7 ------- Run | Yrd Mat Mat Min Exi Min Mat Fac Low Low Zio Traps Triggered 4 | . . 2 . . . 1 1 . . . Indirectly . | . . . . . . . . . . . Trap Hack Attempts . | . . . . . . . . . . . Triggered . | . . . . . . . . . . . Disarmed . | . . . . . . . . . . . Reprogrammed . | . . . . . . . . . . . Reused . | . . . . . . . . . . . Traps Extracted . | . . . . . . . . . . . Installed . | . . . . . . . . . . . Triggered . | . . . . . . . . . . . Machines | -11 -10 -9 -9 -9 -8 -8 -7 -7 -7 -7 ---------- Run | Yrd Mat Mat Min Exi Min Mat Fac Low Low Zio Machines Disabled 5 | . . 3 . . . 2 . . . . Max in Single Turn 1 | . . 1 . . . 1 . . . . Machines Repaired . | . . . . . . . . . . . Machines Dismantled . | . . . . . . . . . . . Machines Sabotaged . | . . . . . . . . . . . Overloaded Fab Kills . | . . . . . . . . . . . Hacking | -11 -10 -9 -9 -9 -8 -8 -7 -7 -7 -7 --------- Run | Yrd Mat Mat Min Exi Min Mat Fac Low Low Zio Machines Accessed 10 | . 4 2 . 1 . 2 . . 1 . Terminals 8 | . 4 2 . . . 2 . . . . Fabricators . | . . . . . . . . . . . Repair Stations . | . . . . . . . . . . . Recycling Units . | . . . . . . . . . . . Scanalyzers . | . . . . . . . . . . . Garrison Access . | . . . . . . . . . . . Total Hacks 21 | . 9 7 . 1 . 3 . . 1 . Successful 10 | . 4 3 . 1 . 1 . . 1 . Failed 11 | . 5 4 . . . 2 . . . . Catastrophic 3 | . . 1 . . . 2 . . . . Database Lockouts . | . . . . . . . . . . . Manual 1 | . . . . 1 . . . . . . Terminals 19 | . 9 7 . . . 3 . . . . Fabricators . | . . . . . . . . . . . Repair Stations . | . . . . . . . . . . . Recycling Units . | . . . . . . . . . . . Scanalyzers . | . . . . . . . . . . . Garrison Access . | . . . . . . . . . . . Terminal Hacks 10 | . 4 3 . 1 . 1 . . 1 . Open Door 1 | . . . . . . . . . 1 . Level Access Points 1 | . 1 . . . . . . . . . Unreport Threat 2 | . . 2 . . . . . . . . Locate Traps 2 | . 1 . . . . 1 . . . . Zone Layout 3 | . 2 1 . . . . . . . . Derelict Proto ID Bank 1 | . . . . 1 . . . . . . Fabricator Hacks . | . . . . . . . . . . . Repair Station Hacks . | . . . . . . . . . . . Recycling Unit Hacks . | . . . . . . . . . . . Scanalyzer . | . . . . . . . . . . . Garrison Access Hacks . | . . . . . . . . . . . Unauthorized Hacks . | . . . . . . . . . . . Terminals . | . . . . . . . . . . . Fabricators . | . . . . . . . . . . . Repair Stations . | . . . . . . . . . . . Recycling Units . | . . . . . . . . . . . Scanalyzers . | . . . . . . . . . . . Garrison Access . | . . . . . . . . . . . Data Cores Recovered 2 | . 1 . . . . 1 . . . . Used . | . . . . . . . . . . . Hacking Detections 6 | . 3 2 . . . 1 . . . . Full Trace Events 1 | . . 1 . . . . . . . . Feedback Events . | . . . . . . . . . . . Feedback Blocked . | . . . . . . . . . . . Robot Schematics Acquired . | . . . . . . . . . . . Robots Built . | . . . . . . . . . . . Authchips . | . . . . . . . . . . . Time . | . . . . . . . . . . . Total Robot Build Rating . | . . . . . . . . . . . Part Schematics Acquired . | . . . . . . . . . . . Parts Built . | . . . . . . . . . . . Authchips . | . . . . . . . . . . . Time . | . . . . . . . . . . . Total Part Build Rating . | . . . . . . . . . . . Parts Repaired . | . . . . . . . . . . . Time . | . . . . . . . . . . . Parts Recycled . | . . . . . . . . . . . Recycled Matter . | . . . . . . . . . . . Retrieved Matter . | . . . . . . . . . . . Retrieved Components . | . . . . . . . . . . . Parts Scanalyzed . | . . . . . . . . . . . Part Schematics Acquired . | . . . . . . . . . . . Parts Damaged . | . . . . . . . . . . . Bothacking | -11 -10 -9 -9 -9 -8 -8 -7 -7 -7 -7 ------------ Run | Yrd Mat Mat Min Exi Min Mat Fac Low Low Zio Used RIF Installer . | . . . . . . . . . . . Robots Hacked . | . . . . . . . . . . . Non-combat . | . . . . . . . . . . . Combat . | . . . . . . . . . . . Robot Hacks Applied . | . . . . . . . . . . . Relay Couplers Released . | . . . . . . . . . . . Fabnet Peak Effective % . | . . . . . . . . . . . Robots Rewired . | . . . . . . . . . . . Allies Hacked . | . . . . . . . . . . . Hacks Repelled . | . . . . . . . . . . . Allies | -11 -10 -9 -9 -9 -8 -8 -7 -7 -7 -7 -------- Run | Yrd Mat Mat Min Exi Min Mat Fac Low Low Zio Total Allies . | . . . . . . . . . . . Largest Group . | . . . . . . . . . . . Highest-Rated Group . | . . . . . . . . . . . Highest-Rated Ally . | . . . . . . . . . . . Total Orders . | . . . . . . . . . . . Ally Attacks . | . . . . . . . . . . . Total Damage . | . . . . . . . . . . . Kills . | . . . . . . . . . . . Allies Corrupted . | . . . . . . . . . . . Allies Melted . | . . . . . . . . . . . Intel | -11 -10 -9 -9 -9 -8 -8 -7 -7 -7 -7 ------- Run | Yrd Mat Mat Min Exi Min Mat Fac Low Low Zio Robot Analysis Total . | . . . . . . . . . . . Derelict Logs Recovered 5 | . . . 1 . . . . 3 . 1 Drone Launches . | . . . . . . . . . . . Drone Recoveries . | . . . . . . . . . . . Exploration | -11 -10 -9 -9 -9 -8 -8 -7 -7 -7 -7 ------------- Run | Yrd Mat Mat Min Exi Min Mat Fac Low Low Zio Turns Passed 3644 | 68 260 481 317 318 486 1001 37 155 148 373 Spaces Moved 3702 | 43 231 282 233 277 370 855 131 192 437 651 Core 27 | 8 . . . . . . . . . 19 Treads 9 | . . . . . . . . . . 9 Legs 1137 | . . . 231 277 370 255 . . . 4 Wheels 198 | 35 163 . . . . . . . . . Hover 352 | . 68 282 2 . . . . . . . Flight 1979 | . . . . . . 600 131 192 437 619 Fastest Speed 24 | 50 56 52 120 110 110 27 24 24 24 24 Average Speed 63 | 90 87 83 121 114 110 52 25 24 24 36 Slowest Speed 400 | 100 100 180 190 120 183 112 27 24 24 400 Overloaded Moves . | . . . . . . . . . . . Propulsion Burnouts . | . . . . . . . . . . . Robots Hopped 6 | . . . . . . 3 . . . 3 Cave-ins Triggered . | . . . . . . . . . . . Exploration Rate (%) 44 | 3 45 29 54 61 77 63 4 33 60 65 Regions Visited 10 Branch Regions 6 Pre-discovered Areas 2 | . . . 1 . . . . . . 1 Known Exits Taken 2 | . 1 . . . . . . 1 . . Unknown Exits Taken 8 | 1 . 1 1 1 1 1 1 . 1 . Scrap Searched 7 | . . . 1 . 1 . . . 3 2 Spaces Dug . | . . . . . . . . . . . Terrain Destroyed 34 | . . . . . . 3 . . 1 30 Melee . | . . . . . . . . . . . Projectile 4 | . . . . . . 3 . . 1 . AOE 30 | . . . . . . . . . . 30 Terrain Rammed . | . . . . . . . . . . . Walls Destroyed . | . . . . . . . . . . . Machines Disabled . | . . . . . . . . . . . Actions | -11 -10 -9 -9 -9 -8 -8 -7 -7 -7 -7 --------- Run | Yrd Mat Mat Min Exi Min Mat Fac Low Low Zio Total 4576 | 63 262 440 250 278 438 1240 133 267 462 743 Wait 441 | . . 76 6 . 57 230 . 53 14 5 Move 3680 | 42 230 281 232 276 369 848 130 191 436 645 Hop 6 | . . . . . . 3 . . . 3 Pick Up 82 | 9 6 14 . . 4 28 1 4 1 15 Fast Attach 16 | . . 2 3 1 . 4 . . 1 5 Attach 45 | 7 3 5 . . . 12 2 . 1 15 Detach . | . . . . . . . . . . . Swap 18 | . 2 6 . . 2 8 . . . . Drop 56 | . 4 6 1 1 2 28 . 3 1 10 Fire 223 | 5 17 50 8 . 4 79 . 16 8 36 Melee 3 | . . . . . . . . . . 3 Ram 6 | . . . . . . . . . . 6 Kick . | . . . . . . . . . . . Crush . | . . . . . . . . . . . Escape Stasis . | . . . . . . . . . . . Rewire . | . . . . . . . . . . . Trap . | . . . . . . . . . . . Miscellaneous . | . . . . . . . . . . . Route ------- -11/Scrapyard -10/Materials (discovered 3 exits: *Mat x3) -9/Materials (discovered 2 exits: [*Min] / [*Sto]) -9/Mines -9/Exiles -8/Mines -8/Materials -7/Factory -7/Lower Caves -7/Lower Caves -7/Zion History --------- Turn | Location | Event 45 | -11/Scrapyard | Discovered new exit (range 15) 69 | -11/Scrapyard | Entered Materials 297 | -10/Materials | Identified exit to Materials 310 | -10/Materials | Build established: Mutant 329 | -10/Materials | Entered another Materials area 329 | -9/Materials | Evolved 2 slots: Propulsion x1, Utility x1 329 | -9/Materials | Discovered new exit (range 15) 655 | -9/Materials | Discovered new exit (range 13) 810 | -9/Materials | Entered Mines 929 | -9/Mines | Learned location of Zion (-7) 1035 | -9/Mines | YI-UF0 nonchalantly dropped a Grenade Launcher on the ground 1121 | -9/Mines | Deemed a non-threat by the Exiles lab entrance 1121 | -9/Mines | Discovered new exit (range 5) 1127 | -9/Mines | Entered Exiles 1143 | -9/Exiles | Build established: Scavenger-Mutant 1159 | -9/Exiles | Met 8R-AWN 1179 | -9/Exiles | Met EX-HEX 1214 | -9/Exiles | Met EX-BIN 1231 | -9/Exiles | Aligned with FarCom system 1232 | -9/Exiles | Given EX-Vault access code 1264 | -9/Exiles | Opened EX-Vault 1273 | -9/Exiles | Found Potential Leg 1297 | -9/Exiles | Warned to stay clear of 0b10 Research branches 1312 | -9/Exiles | Exiles lab attacked by MAIN.C 1431 | -9/Exiles | Discovered new exit (range 14) 1445 | -9/Exiles | Left Exiles lab with Potential Leg 1445 | -9/Exiles | Entered Mines 1568 | -8/Mines | Build established: Mutant 1902 | -8/Mines | Discovered new exit (range 7) 1931 | -8/Mines | Entered Materials 1931 | -8/Materials | Evolved 2 slots: Propulsion x1, Weapon x1 2481 | -8/Materials | Destroyed 7 combat bots 2488 | -8/Materials | Lost 6 parts (1p2n2u1w) 2769 | -8/Materials | Build established: Sprinter 2924 | -8/Materials | Discovered new exit (range 15) 2932 | -8/Materials | Entered Factory 2932 | -7/Factory | Evolved 2 slots: Propulsion x1, Utility x1 2966 | -7/Factory | Discovered new exit (range 7) 2969 | -7/Factory | Entered Lower Caves 2972 | -7/Lower Caves | Encountered a Warlord checkpoint 3014 | -7/Lower Caves | Lost 3 allies 3017 | -7/Lower Caves | Learned location of 1 exit from Proximity Caves 3073 | -7/Lower Caves | Identified exit to Lower Caves 3120 | -7/Lower Caves | Learned Factory security intel 3124 | -7/Lower Caves | Entered another Lower Caves area 3141 | -7/Lower Caves | Encountered a Warlord checkpoint 3253 | -7/Lower Caves | Attracted the attention of an 0b10 checkpoint 3263 | -7/Lower Caves | Discovered new exit (range 10) 3272 | -7/Lower Caves | Entered Zion 3284 | -7/Zion | System corruption cleaned by Quarantine Array 3292 | -7/Zion | Given the Hacking Drone Bay 3292 | -7/Zion | Found Prototype Device 3292 | -7/Zion | Identified Hacking Drone Bay 3302 | -7/Zion | Found Relay Coupler [Programmer] 3334 | -7/Zion | Rebuked by Imprinter 3339 | -7/Zion | Attempted to imprint without authorization 3339 | -7/Zion | Attacked by Zionites 3400 | -7/Zion | Core integrity fell below 50% 3406 | -7/Zion | Core integrity fell below 20% 3415 | -7/Zion | Found Prototype Special Weapon 3416 | -7/Zion | Identified RU-N14's Throwing Claymores 3423 | -7/Zion | Found RU-N14's Throwing Claymores 3425 | -7/Zion | Found RU-N14's Throwing Claymores 3430 | -7/Zion | Found RU-N14's Throwing Claymores 3432 | -7/Zion | Lost 12 parts (1p4n3u4w) 3578 | -7/Zion | Destroyed Imprinter 3581 | -7/Zion | Extracted access codes from Imprinter's data core 3611 | -7/Zion | Found Prototype Device 3611 | -7/Zion | Identified Phasing AFG 3645 | -7/Zion | Destroyed by CR-A16 with Phasing Sabre Last Messages --------------- 03582_ Acquired Mak. Sensor Array. 03582_ TU-BK0(z) pulls a Mak. Spear out of the Twisted Machinery. 03583_ Acquired Mak. System Shield. 03584_ Acquired 4 matter. 03585_ Acquired Mak. Hacking Suite. 03605_ 60-VUC(z) pulls a Mak. Laser out of the Twisted Machinery. 03609_ Searching scrap... 03609_ Found Transmission Jammer. 03609_ Found Carbon-fiber Leg. 03609_ Found Particle Charger. 03609_ Found 43 Matter. 03611_ Acquired Prototype Device. 03611_ Identified Phasing AFG. 03612_ Dropped Phasing AFG. 03614_ Acquired Transmission Jammer. 03628_ Critical hit (Burn: +37). 03630_ 60-VUC(z) heat short circuits Lgt. Nuclear Core. 03632_ Critical hit (Burn: +37). 03643_ Mak. Flight Unit destroyed. 03643_ Xenon Bombardment Thruster destroyed. Map ----- +----------------------------------------------------+ | ?????????????????????????????????????????????????? | | ??????????????????????#####??????????????????????? | | ????????????????????##" ""#???????????????#####??? | | ????????????????????#!" ""##??????????????# #?? | | ????????????????????# "#??????????????# ## | | ????????????????????#"" ""#??????????????# # | | ????????????????????##%=####??????????????## ## | | ????????????????????#! #??????????????# # | | ????????????????????# #??????????????####"" | | ????????????????????#" ##?????????######?##" | | ???????????????????##"""# ##???###### # ##### | | ???????????????????#"""""" #####"## ## | | ???????????????????##" #""# # | | ??????????????????##"" """ ""# | | ?????????????????"#"""" " | | ????????????????##"""""" % | | ????????????????#"""" "" """" | | ????????????????#"" """#" == | | ????????????????#""" ""##" =/= | | ????????????????#""""" """""" = | | ?????????????????#"""" """"" | | ??????????????????###" z z"" | | ?????????????????"""""" z " | | ??????????????????"""""" """""" | | ?????????????????? """"" """""" | | ????????????????? """" @"""" | | ?????????????????? """"l | | ????????????????? """ = | | ???????????????? ""#" ! | | ???????????????? """"""" | | ??????????????? $ | | ?????????????? | | ??????????????? =% | | ???? ??????? """#""#"""""""" " % | | ???? ??????""" """""""""""""""""" " | | ???" """?????"" "?""""""""#"""#"""#"# " /= | | ???" " "??????"????????????##########""" | | ???" "#?????????????????????????#"##" " | | " "" ""????????????????????????##"""" """ | | """" "##??????????????????????#""""" """" | | """" ""#???????????????????????##" | | "##??????????????????????#"" | | """"#?????????????????????##"" | | """"??????????????????????#"#" " | | "??????????????????????"""""" """ | | "???????????????????????#"#""" """" | | """""???????????????????????#""""" """" | | " """""??????????????????????###" #""" | | "" "#"""??????????????????????#""" #"" | | "" ""#????????????????????????##""" "" | +----------------------------------------------------+ Best States ------------- Heat Dissipation 53 Energy Generation 16 Energy Capacity 290 Matter Stores 300 Matter Capacity 300 Sight Range 16 Robot Scan Range 14 Terrain Scan Density 10 Armor Coverage 225 Evasion (%) 65 Targeting Accuracy 12 Target Analysis 5 Recoil Reduction 3 Defensive Hacking 11 Item Schematics ----------------- None Robot Schematics ------------------ None Fabricated ------------ Nothing Alien Tech Used ----------------- None Achievements -------------- Monster Challenges ------------ None Game ------ Seed MultinovaVisualBiocell Manual? 0 Play Time 01:14:01 Cumulative 70.5 hours Start 2025.03.27 @ 12:53:53 End 2025.03.27 @ 14:07:58 Sessions 1 Manual Loads 0 Difficulty Rogue Special Mode None Game No. 69 Rogue 69 Adventurer 0 Explorer 0 Win Type - Total 0 Types 0/0/0/0/0/0/0/0/0 Lore% 7 Gallery% 37 Achievement% 31 Wizard Run 0 Options --------- Layout 0 ASCII 0 Keyboard 0 Movement Mouse Keybinds 0 Fullscreen 2 Font 12/Smallcaps Map View 41x27 Zoom Use 97% Tactical HUD 1 Map Filters NONE Filters NONE Steam 1 RUN: 48ae5c98-1f05-4ed0-aaf6-39a718cb8fcc